bitfinex/quotes_ETHUSD_20260109
["timestamp","ask_amount","ask_price","bid_price","bid_amount"]
[1767992020663,0.256,3075.5,3075.0,0.92158871]
[1767992020890,0.00083825,3075.7,3075.0,0.92158871]
[1767992021161,0.256,3075.6,3075.0,0.92158871]
[1767992021576,0.256,3075.6,3075.5,0.002]
[1767992021773,0.98544445,3075.5,3074.9,0.00728088]
[1767992022410,0.98544445,3075.2,3074.2,0.00280616]
[1767992022712,0.98544445,3075.0,3074.2,3.25568495]
[1767992023110,0.98544445,3075.0,3074.2,4.17727366]
[1767992023314,0.98544445,3075.0,3074.3,0.7430245]
[1767992023607,0.00080728,3075.3,3074.4,0.92158871]
[1767992023798,0.256,3075.1,3074.4,0.92158871]
[1767992024002,0.00080728,3075.3,3074.4,0.92158871]
[1767992024202,0.00080728,3075.3,3074.5,1.08805003]
[1767992024711,0.00080728,3075.3,3074.5,4.34055615]
[1767992025159,0.98544445,3074.5,3073.3,0.000804]
[1767992025285,0.98544445,3074.4,3073.6,3.25430576]
[1767992025483,0.98625061,3074.6,3073.7,0.92848828]
[1767992025813,0.00080616,3074.6,3073.8,0.6030577]
[1767992027000,0.00080616,3074.6,3073.9,3.25319626]
[1767992027199,0.00080616,3074.6,3073.9,3.85625396]
[1767992027404,0.00080616,3074.6,3074.0,0.3856254]
[1767992027606,0.02916444,3074.2,3073.6,0.00080512]
[1767992027789,1.0126089,3074.2,3073.6,0.00080512]
[1767992029633,0.02716445,3074.2,3073.6,0.00080512]
[1767992030811,0.90662376,3074.4,3073.6,0.00080512]
[1767992031328,0.90662376,3074.4,3073.6,0.71191905]
[1767992032507,0.90662376,3074.4,3072.2,3.41577445]
[1767992032508,0.90742776,3073.7,3072.4,0.6030577]
[1767992032710,0.90742776,3073.7,3072.7,3.85750407]
[1767992033017,0.00080512,3074.0,3073.3,0.00080408]
[1767992033529,0.90742888,3074.0,3073.9,0.002]
[1767992033729,0.90662376,3073.9,3073.5,0.002]
[1767992035196,0.90742888,3074.0,3073.5,0.002]
[1767992037741,0.90742888,3074.0,3072.8,4.11340536]
[1767992037742,0.90742888,3074.0,3071.8,0.60386362]
[1767992037743,0.9357882,3073.1,3071.8,0.60386362]
[1767992037945,0.9357882,3073.0,3071.8,0.00080592]
[1767992038248,0.02916444,3072.5,3071.8,0.00080592]
[1767992038408,0.90662376,3072.3,3071.8,0.00080592]
[1767992040244,0.00082914,3072.6,3071.8,0.00080592]
[1767992040813,0.00082914,3072.6,3071.9,0.256]
[1767992041352,0.9074529,3072.6,3072.0,0.256]
[1767992041847,0.00082914,3072.6,3072.0,0.256]
[1767992042153,0.00082914,3072.6,3071.8,0.00080592]
[1767992042313,0.00082914,3072.6,3071.9,0.256]
[1767992043045,0.00082914,3072.6,3072.0,0.35122038]
[1767992043241,0.00082914,3072.6,3071.9,0.256]
[1767992043943,0.92969363,3072.6,3072.0,0.256]
[1767992044468,0.92969363,3072.6,3071.1,0.6330287]
[1767992044469,0.92969363,3072.6,3071.1,0.00080656]
[1767992044610,0.92886449,3072.1,3071.4,0.256]
[1767992044810,0.00080592,3072.2,3071.4,0.8590577]
[1767992045011,0.00080592,3072.2,3071.5,0.6030577]
[1767992045312,0.00080592,3072.2,3071.4,3.51182074]
[1767992045847,0.00080592,3072.2,3071.5,3.25572254]
[1767992046049,0.00080592,3072.2,3071.6,0.35117225]
[1767992046413,0.00080592,3072.2,3071.6,0.95422995]
[1767992047618,0.00080592,3072.2,3072.0,0.002]
[1767992048853,0.00082914,3072.6,3072.0,0.002]
[1767992049522,0.00082914,3072.6,3072.0,0.6050577]
[1767992050147,0.00082914,3072.6,3072.0,3.8601757]
[1767992050316,0.00082914,3072.6,3072.1,0.38601757]
[1767992050646,0.00082914,3072.6,3072.0,0.002]
[1767992050848,0.00082914,3072.6,3072.2,0.256]
[1767992055192,0.7660349,3073.6,3072.3,0.6030577]
[1767992055524,0.92886449,3073.5,3072.3,0.6030577]
[1767992055724,0.92886449,3073.5,3072.4,0.73698777]
[1767992055953,0.92886449,3073.5,3072.5,0.256]
[1767992056725,0.92886449,3073.4,3072.5,0.256]
[1767992056932,0.92886449,3073.4,3072.4,3.25477756]
[1767992057137,0.92886449,3073.4,3072.5,0.256]
[1767992057336,0.92886449,3073.4,3072.5,3.8616766]
[1767992059364,0.001,3073.3,3072.5,3.8616766]
[1767992060061,0.001,3073.3,3072.5,7.1163552]
[1767992060454,0.001,3073.3,3072.5,3.8616766]
[1767992062064,0.92986449,3073.3,3072.6,0.256]
[1767992062264,0.92986449,3073.3,3072.6,0.71875639]
[1767992062565,0.92986449,3073.3,3072.7,0.256]
[1767992063435,0.92986449,3073.3,3072.6,0.46275639]
[1767992063640,0.92986449,3073.3,3072.8,0.256]
[1767992064967,0.92986449,3073.3,3072.9,0.256]
[1767992066470,0.92986449,3073.3,3073.0,0.256]
[1767992070345,0.001,3073.3,3073.0,0.256]
[1767992078793,0.92731521,3073.3,3073.1,0.256]
[1767992078996,0.00080408,3073.7,3073.2,5.72428891]
[1767992079173,0.92711929,3073.7,3072.9,6.4921762]
[1767992079373,0.92711929,3073.7,3073.3,0.256]
[1767992079775,0.00080408,3073.7,3073.3,0.256]
[1767992080282,0.00080512,3074.0,3073.8,0.91309595]
[1767992080603,0.00080616,3074.6,3073.9,0.91973849]
[1767992080604,0.92712137,3074.6,3073.9,0.91973849]
[1767992080814,0.92712137,3074.6,3073.6,0.91268128]
[1767992080974,0.92712137,3074.6,3073.7,0.256]
[1767992081175,0.92712137,3074.6,3073.8,0.256]
[1767992081604,0.92712137,3074.6,3073.9,3.25317349]
[1767992081972,0.00080616,3074.6,3074.0,6.63616499]
[1767992082292,0.00080616,3074.6,3074.1,1.31425347]
[1767992082701,0.00080616,3074.6,3073.6,3.25425838]
[1767992082702,0.02916444,3074.1,3073.6,0.0008052]
[1767992082872,0.92631521,3073.8,3073.7,0.256]
[1767992083069,0.98754563,3074.0,3073.7,0.256]
[1767992083481,0.98754563,3074.0,3073.6,0.0008052]
[1767992083704,0.98754563,3074.0,3073.8,0.256]
[1767992084805,0.98754563,3074.0,3073.8,0.14212235]
[1767992084971,0.98754563,3074.0,3073.8,0.09657003]
[1767992086316,0.98754563,3074.0,3073.9,0.256]
[1767992086469,1.68208336,3074.0,3073.9,0.09807774]
[1767992086670,2.17849745,3074.0,3073.9,0.256]
[1767992086914,2.17849745,3074.0,3073.6,0.0008052]
[1767992087114,1.48395972,3074.0,3073.9,0.256]
[1767992087423,0.05923042,3074.0,3073.9,0.24675877]
[1767992087723,0.05723042,3074.0,3073.9,0.24675877]
[1767992088308,0.01654653,3074.0,3073.9,0.24675877]
[1767992089094,0.01654653,3074.0,3073.9,0.03651023]
[1767992089295,0.001,3074.3,3073.9,3.28970649]
[1767992089501,0.001,3074.3,3073.9,0.03651023]
[1767992089920,0.001,3074.3,3073.9,3.28970448]
[1767992090094,1.65461195,3074.6,3073.9,3.28970448]
[1767992090294,0.00080616,3074.6,3073.9,6.54290275]
[1767992090629,0.00080616,3074.6,3073.9,3.99082162]
[1767992090835,0.96024455,3074.6,3073.6,0.0008052]
[1767992091018,0.96024455,3074.6,3073.8,3.25328184]
[1767992091019,0.95943839,3074.4,3073.8,3.25328184]
[1767992091223,0.00080616,3074.6,3073.8,3.25328184]
[1767992091224,0.96024455,3074.6,3073.8,3.25328184]
[1767992091421,0.96024455,3074.6,3073.9,3.25319172]
[1767992093032,0.96024455,3074.6,3073.8,3.25329178]
[1767992093744,0.96024455,3074.6,3073.8,6.50659388]
[1767992094300,0.96024455,3074.6,3073.8,3.25329178]
[1767992095436,0.96024455,3074.6,3073.8,6.50659388]
[1767992096244,0.96024455,3074.6,3073.8,7.22975864]
[1767992097440,0.96024455,3074.6,3074.1,0.002]
[1767992097602,0.96024455,3074.6,3074.2,0.256]
[1767992097802,0.001,3074.3,3074.2,0.256]
[1767992098127,0.96024455,3074.6,3074.2,0.256]
[1767992100333,0.96024455,3074.6,3073.8,0.002]
[1767992100506,0.96024455,3074.6,3074.0,3.25307447]
[1767992100507,0.95943839,3074.4,3074.0,3.25307447]
[1767992101023,0.95943839,3074.4,3073.9,0.256]
[1767992101216,0.95943839,3074.4,3073.9,3.50918243]
[1767992101418,0.88648193,3074.4,3073.9,0.256]
[1767992101614,0.88648193,3074.4,3074.1,3.25293917]
[1767992101818,0.88648193,3074.4,3074.0,3.25309043]
[1767992102610,0.88648193,3074.4,3074.1,0.256]
[1767992102849,0.02916444,3075.1,3074.1,0.256]
[1767992102850,0.00080728,3075.3,3074.2,0.00080624]
[1767992103047,0.97011841,3075.2,3074.2,0.00080624]
[1767992103914,0.97011841,3075.2,3074.2,6.50656382]
[1767992104222,0.97011841,3075.2,3074.2,9.75944261]
[1767992104431,0.97011841,3075.2,3074.2,6.50656382]
[1767992104652,0.97011841,3073.6,3073.3,0.00280416]
[1767992104821,0.97011841,3073.6,3073.0,0.002]
[1767992105138,0.00080416,3073.7,3073.2,3.25387108]
[1767992106309,0.00080416,3073.7,3073.1,0.256]
[1767992106711,0.00080416,3073.7,3073.2,0.256]
[1767992106911,0.97011841,3073.6,3073.0,0.002]
[1767992107161,0.99928285,3073.6,3073.1,0.256]
[1767992107531,0.99728285,3073.6,3073.1,0.256]
[1767992107729,0.99528285,3073.6,3073.1,0.256]
[1767992109043,0.99528285,3073.6,3073.0,0.002]
[1767992109350,0.97011841,3073.4,3073.0,0.002]
[1767992109513,0.00080416,3073.7,3073.1,0.256]
[1767992109514,0.97011841,3073.6,3073.1,0.256]
[1767992109940,0.97011841,3073.6,3073.4,0.002]
[1767992110118,0.97011841,3073.6,3073.5,0.256]
[1767992110438,0.02916444,3073.5,3073.4,1e-08]
[1767992110757,0.99928285,3073.5,3073.4,1e-08]
[1767992110914,0.99928285,3073.5,3073.4,0.25600001]
[1767992111263,0.99928285,3073.5,3072.3,0.93918441]
[1767992111264,0.97011841,3073.3,3071.8,1e-08]
[1767992111420,0.000806,3072.2,3071.7,2.1e-06]
[1767992111643,0.02916444,3071.9,3071.8,0.256]
[1767992112556,0.02916444,3072.1,3071.8,0.256]
[1767992114347,0.00082996,3072.6,3071.9,0.256]
[1767992114545,0.00082996,3072.6,3072.0,0.35114081]
[1767992116387,0.00082996,3072.6,3072.0,3.60633519]
[1767992117548,0.00082996,3072.6,3072.0,0.35114081]
[1767992118359,0.00082996,3072.6,3072.1,0.256]
[1767992118557,0.00082996,3072.6,3071.7,3.25550254]
[1767992118558,0.97011841,3072.5,3071.7,3.25550254]
[1767992118785,0.97011841,3072.5,3069.6,0.02916444]
[1767992118786,0.97011841,3071.4,3070.0,0.00080312]
[1767992119080,0.97011841,3071.4,3070.3,0.256]
[1767992119282,0.00080656,3071.5,3070.3,0.256]
[1767992119654,0.00080656,3071.5,3070.4,3.25690463]
[1767992119854,0.00080656,3071.5,3070.5,0.256]
[1767992120950,0.00080656,3071.5,3070.6,0.93918441]
[1767992122181,0.00080656,3071.5,3070.7,6.51317288]
[1767992122384,0.00080656,3071.5,3070.8,0.74523573]
[1767992122694,0.00080656,3071.5,3070.9,0.256]
[1767992124688,0.00080656,3071.5,3070.8,0.74523573]
[1767992124884,0.97092497,3071.5,3070.9,0.256]
[1767992125088,0.00080656,3071.5,3070.9,0.256]
[1767992125294,0.00080656,3071.5,3070.9,0.60725251]
[1767992125459,0.00080656,3071.5,3070.9,3.86362548]
[1767992125892,0.00080656,3071.5,3070.9,7.11999983]
[1767992126993,0.00080656,3071.5,3070.9,3.86362548]
[1767992128102,0.97092497,3071.5,3070.9,0.35125251]
[1767992128274,0.00080656,3071.5,3071.0,0.256]
[1767992129184,0.00080656,3071.5,3071.1,0.256]
[1767992130177,0.00080656,3071.5,3070.8,3.25644589]
[1767992130503,0.00080656,3071.5,3070.9,0.256]
[1767992130699,0.00080656,3071.5,3070.9,0.67691455]
[1767992131002,0.00080656,3071.5,3071.0,0.256]
[1767992134591,0.001,3071.2,3071.0,0.256]
[1767992135380,0.001,3071.2,3071.0,3.51225425]
[1767992135777,0.94942787,3071.5,3071.0,3.51225425]
[1767992135998,0.94942787,3071.5,3071.0,4.39529136]
[1767992136604,0.94942787,3071.5,3071.0,1.13903711]
[1767992139806,0.94942787,3071.5,3071.0,4.3952919]
[1767992140887,0.00080608,3072.2,3071.1,0.92004012]
[1767992141088,0.00080608,3072.2,3071.3,0.91923348]
[1767992141820,0.00082996,3072.6,3071.7,0.91923348]
[1767992141987,0.00082996,3072.6,3071.9,0.91923348]
[1767992142192,4.20247587,3073.3,3072.2,0.00083078]
[1767992142392,4.201256,3073.3,3072.2,0.00083078]
[1767992142594,1.36874691,3073.2,3072.2,0.00083078]
[1767992142830,0.94862131,3073.2,3072.2,0.00083078]
[1767992142984,0.94862131,3073.2,3072.2,7.43005708]
[1767992143188,0.94862131,3073.2,3072.2,4.17506067]
[1767992146421,0.001,3072.9,3072.2,4.17506067]
[1767992149505,0.001,3072.9,3072.2,0.92006426]
[1767992149926,0.001,3072.9,3072.2,4.17505739]
[1767992150128,0.96195236,3072.9,3072.2,0.00083078]
[1767992150327,0.96195236,3072.9,3072.3,0.256]
[1767992150636,0.001,3072.9,3072.3,0.256]
[1767992150838,0.96195236,3072.9,3072.3,0.256]
[1767992152410,0.001,3072.9,3072.3,0.256]
[1767992152611,0.42260034,3072.9,3072.3,0.256]
[1767992153024,0.001,3072.9,3072.3,0.256]
[1767992155255,0.001,3072.9,3072.4,0.99493454]
[1767992155742,0.001,3072.9,3072.3,0.256]
[1767992155957,0.001,3072.9,3072.3,1.25093454]
[1767992157407,0.00080416,3073.7,3073.0,0.99493454]
[1767992157609,0.16981089,3074.3,3073.2,0.99493454]
[1767992157806,0.02916444,3075.5,3073.1,0.256]
[1767992157807,0.96095236,3074.5,3073.6,0.00080528]
[1767992158009,3.25193211,3075.1,3073.8,0.99493454]
[1767992158010,0.96095236,3075.1,3073.8,0.99493454]
[1767992158265,0.96095236,3075.4,3074.2,0.00080632]
[1767992158534,0.96095236,3075.4,3074.3,1.25093454]
[1767992159035,3.25146167,3075.6,3074.3,1.25093454]
[1767992159036,3.25146167,3075.6,3074.4,0.99493454]
[1767992159237,3.25147829,3075.6,3074.4,0.99493454]
[1767992159442,6.50295658,3075.6,3074.4,0.99493454]
[1767992159643,6.50295658,3075.6,3074.4,4.24754225]
[1767992160216,3.25147829,3075.6,3074.4,4.24754225]
[1767992160540,6.50295658,3075.6,3074.3,3.50874746]
[1767992160844,0.96095236,3075.5,3074.4,3.25266126]
[1767992161630,0.96095236,3075.5,3074.4,6.50532844]
[1767992161945,4.21246301,3075.5,3074.4,3.25266126]
[1767992162143,0.42213431,3075.3,3074.4,3.25266126]
[1767992162447,0.42213431,3075.3,3074.3,4.50367582]
[1767992163506,0.00080728,3075.3,3074.4,1.172]
[1767992164140,0.00080728,3075.3,3074.5,0.96357654]
[1767992165042,0.00083825,3075.7,3074.5,0.96357654]
[1767992165208,0.00083825,3075.7,3074.9,0.9643839]
[1767992165413,0.00083825,3075.7,3075.1,3.25192676]
[1767992165715,0.00083825,3075.7,3075.1,6.50385352]
[1767992165914,0.00083825,3075.7,3075.1,3.25192676]
[1767992167248,0.00083825,3075.7,3075.2,0.96357654]
[1767992167546,0.00083825,3075.7,3075.3,3.25171527]
[1767992168241,0.00083825,3075.7,3075.3,4.21529181]
[1767992168544,0.00083825,3075.7,3075.4,0.96357654]
[1767992168714,0.00083825,3075.7,3075.5,0.256]
[1767992168914,0.001,3076.8,3075.7,0.96357654]
[1767992169629,0.001,3076.8,3075.9,0.96357654]
[1767992169838,0.001,3076.8,3076.0,1.427]
[1767992170143,0.001,3076.8,3076.1,0.96357654]
[1767992170365,0.001,3076.8,3075.8,3.25118668]
[1767992170647,0.001,3076.8,3075.9,1.427]
[1767992171249,0.001,3076.8,3075.9,1.87767023]
[1767992171628,0.99782705,3076.7,3075.9,1.87767023]
[1767992171818,0.001,3076.8,3076.0,3.25097529]
[1767992172919,0.001,3076.8,3075.9,3.70174983]
[1767992173132,0.99882705,3076.8,3075.5,3.25149717]
[1767992173346,0.99882705,3076.8,3075.6,1.427]
[1767992173552,0.99882705,3076.8,3075.6,4.67832342]
[1767992174422,0.99782705,3076.6,3075.7,0.256]
[1767992174720,0.99782705,3076.4,3075.7,0.256]
[1767992175246,0.99782705,3076.4,3075.6,3.25136557]
[1767992175473,0.99782705,3076.4,3075.7,0.256]
[1767992176991,0.99782705,3076.4,3074.3,0.96357654]
[1767992176992,0.02916444,3075.2,3074.3,0.96357654]
[1767992177208,0.02916444,3075.0,3074.2,0.00080632]
[1767992177501,0.02916444,3075.0,3074.3,0.256]
[1767992177502,0.02916444,3074.4,3074.3,0.256]
[1767992177650,0.02716445,3074.4,3074.2,0.00080632]
[1767992177855,0.02716445,3074.4,3074.2,1e-08]
[1767992178193,0.02716445,3074.4,3073.6,0.00080528]
[1767992178357,0.02916444,3074.1,3073.7,0.256]
[1767992182197,0.02916444,3074.1,3074.0,0.002]
[1767992182498,0.02916444,3074.1,3073.7,0.256]
[1767992183486,0.02716445,3074.4,3073.7,0.256]
[1767992183904,0.02916444,3074.2,3073.7,0.256]
[1767992185405,0.02997076,3074.6,3073.7,0.256]
[1767992185616,0.02916444,3074.4,3073.7,0.256]
[1767992186117,0.00080632,3074.6,3073.8,0.96357654]
[1767992186286,0.32903268,3074.6,3073.8,0.96357654]
[1767992188290,0.00080632,3074.6,3073.8,0.96357654]
[1767992189319,0.02997076,3074.6,3073.8,0.96357654]
[1767992189521,3.28243204,3074.6,3073.8,0.96357654]
[1767992190344,0.02916444,3074.4,3073.6,0.00280528]
[1767992190548,0.02916444,3074.4,3073.9,0.256]
[1767992190765,0.68557022,3074.4,3073.9,0.256]
[1767992191052,0.68557022,3074.4,3073.6,0.00280528]
[1767992191255,0.02916444,3074.2,3073.6,0.00280528]
[1767992191546,0.02916444,3074.2,3073.7,0.256]
[1767992194044,0.02916444,3074.2,3073.6,0.00280528]
[1767992194349,0.32819458,3074.1,3073.8,0.256]
[1767992194943,0.32819458,3074.1,3074.0,0.002]
[1767992195137,0.32919458,3074.1,3073.8,0.256]
[1767992195636,0.001,3074.1,3073.8,0.256]
[1767992196912,0.001,3074.1,3073.6,0.00280528]
[1767992197112,0.001,3074.1,3073.7,0.256]
[1767992200952,0.001,3074.1,3073.8,0.99821071]
[1767992201624,0.001,3074.1,3073.9,0.256]
[1767992202737,0.001,3074.1,3074.0,0.256]
[1767992203144,0.001,3074.1,3073.8,0.99821071]
[1767992203356,0.001,3074.1,3073.9,0.256]
[1767992203760,0.001,3074.1,3074.0,0.256]
[1767992206086,0.001,3074.1,3074.0,0.15296424]
[1767992206253,0.001,3074.1,3074.0,0.00283889]
[1767992209884,0.02916444,3074.3,3074.0,0.00283889]
[1767992210090,0.44364608,3074.3,3074.0,0.00283889]
[1767992210289,0.44364608,3074.3,3073.6,0.97858128]
[1767992210679,0.44364608,3074.3,3073.7,0.256]
[1767992211058,0.44364608,3074.3,3073.8,0.256]
[1767992211887,3.69649866,3074.3,3073.8,0.256]
[1767992212070,0.46002297,3074.2,3073.8,0.256]
[1767992212792,0.46002297,3074.2,3073.9,0.256]
[1767992214703,0.46002297,3074.2,3073.6,0.00280528]
[1767992214898,0.46002297,3074.2,3074.0,0.256]
[1767992215298,0.46002297,3074.2,3074.1,1e-08]
[1767992216313,0.46002297,3074.2,3074.1,0.256]
[1767992216517,0.00080528,3074.0,3073.4,0.81592105]
[1767992216821,0.00080528,3074.0,3073.5,0.256]
[1767992217015,0.00080528,3074.0,3073.6,0.256]
[1767992217389,0.00080528,3074.0,3073.7,0.256]
[1767992217600,0.00080528,3074.0,3073.3,0.00080424]
[1767992217601,1.46317508,3074.0,3073.3,0.00080424]
[1767992217903,0.02916444,3073.9,3073.4,0.256]
[1767992218430,0.02916444,3073.7,3073.5,0.256]
[1767992218922,0.48047967,3074.0,3073.6,0.975776]
[1767992219126,0.48456557,3073.9,3073.5,0.256]
[1767992219699,0.48456557,3073.9,3073.7,0.002]
[1767992220012,0.48456557,3073.9,3073.5,0.256]
[1767992220412,3.73776763,3073.9,3073.5,0.256]
[1767992220610,0.42182473,3073.8,3073.5,0.256]
[1767992221836,0.42182473,3073.8,3073.5,1e-08]
[1767992222834,4.62450007,3073.8,3073.5,1e-08]
[1767992223008,1.37116787,3073.8,3073.5,1e-08]
[1767992223208,0.51381467,3073.7,3073.5,1e-08]
[1767992224438,0.42182473,3073.8,3073.5,1e-08]
[1767992225333,0.33915432,3073.8,3073.5,1e-08]
[1767992225541,0.00080528,3074.0,3073.5,1e-08]
[1767992225542,3.25391856,3074.0,3073.5,1e-08]
[1767992225943,3.25391856,3074.0,3073.4,0.002]
[1767992226106,4.2032617,3074.0,3073.5,0.256]
[1767992226307,0.94934314,3075.0,3074.1,0.91563441]
[1767992226512,3.28147671,3074.8,3074.2,0.256]
[1767992226744,3.28147671,3074.8,3074.3,0.91563441]
[1767992227046,0.32903462,3074.6,3074.3,0.91563441]
[1767992227408,0.00080632,3074.6,3074.3,0.91563441]
[1767992230048,0.00080632,3074.6,3074.4,0.256]
[1767992230360,0.00080632,3074.6,3074.5,0.256]
[1767992230743,0.10028167,3074.5,3073.8,0.91563441]
[1767992231062,0.10028167,3074.5,3074.0,0.91563441]
[1767992232363,0.001,3074.3,3074.0,0.91563441]
[1767992236691,0.001,3074.3,3074.2,0.91563441]
[1767992238263,0.001,3074.3,3074.2,1.17163441]
[1767992239994,0.001,3074.3,3074.2,1.03713323]
[1767992240486,0.001,3074.3,3073.9,0.91563441]
[1767992240662,0.001,3074.3,3074.0,0.256]
[1767992240988,0.001,3074.3,3074.1,0.91563441]
[1767992241282,0.001,3074.3,3074.2,0.256]
[1767992244403,0.001,3074.3,3074.2,1.17163441]
[1767992246177,0.02501877,3074.5,3074.3,0.91563441]
[1767992246384,0.00080632,3074.6,3074.3,0.91563441]
[1767992253234,0.00080632,3074.6,3074.4,0.256]
[1767992253607,0.95917506,3074.5,3073.8,3.862]
[1767992253932,0.95917506,3074.3,3073.9,0.256]
[1767992254131,0.95917506,3074.3,3074.0,0.256]
[1767992254531,0.95917506,3074.3,3073.8,0.002]
[1767992254724,0.95917506,3074.3,3074.1,0.256]
[1767992254924,0.256,3074.1,3073.9,0.256]
[1767992255535,0.256,3074.1,3074.0,0.256]
[1767992255732,0.70279842,3074.1,3074.0,0.256]
[1767992255918,1.63280904,3074.1,3074.0,0.256]
[1767992256125,1.18601062,3074.1,3074.0,0.256]
[1767992256941,0.256,3074.1,3074.0,0.10625938]
[1767992257746,0.256,3074.1,3074.0,0.00596465]
[1767992258866,0.256,3074.1,3073.8,0.002]
[1767992259070,0.256,3074.1,3074.0,0.256]
[1767992260070,0.95917506,3074.3,3074.0,0.256]
[1767992260270,0.95917506,3074.1,3073.5,0.002]
[1767992260473,0.93001062,3073.9,3073.5,0.002]
[1767992260643,0.95917506,3073.9,3073.6,1e-08]
[1767992261175,0.25599999,3073.7,3073.4,0.002]
[1767992261548,0.70284751,3073.7,3073.4,0.002]
[1767992261875,0.70284751,3073.7,3073.5,0.256]
[1767992263138,0.70284751,3073.7,3073.4,0.002]
[1767992263341,0.70284751,3073.7,3073.5,0.256]
[1767992263645,0.70284751,3073.7,3071.8,0.00080616]
[1767992263646,0.02916444,3071.9,3071.8,0.00080616]
[1767992263843,0.95917506,3071.9,3071.1,0.00080664]
[1767992264044,0.95917506,3071.9,3071.2,0.256]
[1767992264045,0.02916444,3071.5,3071.2,0.256]
[1767992264245,0.02916444,3071.7,3071.3,0.94943536]
[1767992264775,0.02916444,3071.9,3071.3,0.94943536]
[1767992264975,0.02916444,3071.7,3071.4,0.256]
[1767992265473,0.02916444,3071.9,3071.4,0.256]
[1767992265778,0.02916444,3071.9,3071.4,1.20543536]
[1767992265984,0.02916444,3071.9,3071.5,0.94943536]
[1767992266186,0.00080616,3072.2,3071.5,0.94943536]
[1767992266356,0.0299706,3072.2,3071.5,0.94943536]
[1767992266553,0.0299706,3072.2,3071.7,0.94943536]
[1767992268761,0.0299706,3072.2,3071.7,0.95143536]
[1767992268991,0.02916444,3072.0,3071.7,0.95143536]
[1767992269699,0.02916444,3072.0,3071.7,0.002]
[1767992269854,0.02916444,3072.0,3071.8,0.256]
[1767992274486,0.02916444,3072.0,3071.9,0.256]
[1767992276225,0.06186444,3072.0,3071.9,0.256]
[1767992278823,0.06186444,3072.0,3071.9,0.23059909]
[1767992280526,0.06186444,3072.0,3071.7,0.002]
[1767992280527,1.02178189,3071.8,3071.4,0.002]
[1767992280848,0.02916444,3071.5,3071.4,0.002]
[1767992281053,0.02916444,3071.5,3071.4,0.258]
[1767992281248,0.02916444,3071.5,3071.2,3.80167123]
[1767992281450,0.02916444,3071.3,3071.1,0.00080664]
[1767992281652,1.02178189,3071.3,3071.1,2e-08]
[1767992281853,1.02178189,3071.3,3070.6,0.002]
[1767992282158,0.02916444,3071.1,3070.9,0.256]
[1767992282345,0.00080664,3071.5,3071.0,0.99416047]
[1767992282519,0.02916444,3071.4,3071.1,0.256]
[1767992282715,1.02178189,3071.4,3071.1,0.256]
[1767992283465,0.02916444,3071.4,3071.1,0.256]
[1767992283769,0.02916444,3071.4,3071.0,0.002]
[1767992283922,0.02916444,3071.4,3071.2,0.256]
[1767992286247,0.00080664,3071.5,3071.2,0.256]
[1767992286956,0.02916444,3071.4,3071.2,0.256]
[1767992287555,0.02916444,3071.4,3071.2,0.11796084]
[1767992289264,1.65763281,3073.9,3071.2,1.07185198]
[1767992289265,0.02916444,3072.1,3071.2,1.07185198]
[1767992289570,3.28430156,3072.1,3071.2,1.07185198]
[1767992290158,3.25525753,3072.0,3071.2,1.07185198]
[1767992290358,3.28449809,3071.9,3071.2,1.07185198]
[1767992290561,0.02916444,3072.1,3071.2,1.07185198]
[1767992290752,0.02916444,3071.8,3071.2,1.07185198]
[1767992291470,0.02916444,3071.8,3071.2,1.50494137]
[1767992293774,0.001,3071.5,3071.2,1.50494137]
[1767992294072,0.001,3071.5,3071.2,0.55105023]
[1767992294244,0.001,3071.5,3071.2,0.11796084]
[1767992294647,0.001,3071.5,3071.1,0.95469786]
[1767992294845,0.001,3071.5,3071.2,0.256]
[1767992295269,0.001,3071.5,3071.3,0.256]
[1767992297459,0.001,3071.5,3071.1,0.00080672]
[1767992297659,0.001,3071.5,3071.1,0.25680672]
[1767992298274,0.0337,3071.5,3071.1,1.21069786]
[1767992298474,0.0337,3071.5,3071.2,0.95389114]
[1767992300290,0.0037,3071.5,3071.2,0.95389114]
[1767992304499,0.0037,3071.5,3071.3,0.95389114]
[1767992305301,0.0037,3071.5,3071.1,1.65759907]
[1767992305809,0.0037,3071.5,3071.1,1.65959907]
[1767992307004,0.0037,3071.5,3071.1,1.40359907]
[1767992307202,0.0037,3071.5,3071.2,0.256]
[1767992307702,0.98290884,3072.3,3071.8,0.00080624]
[1767992308002,0.98290884,3072.3,3071.4,0.95389114]
[1767992308003,1.02325474,3072.2,3071.4,0.95389114]
[1767992310312,0.9940903,3072.2,3071.4,0.95389114]
[1767992310827,4.27825352,3072.2,3071.4,0.95389114]
[1767992311511,1.02325474,3072.2,3071.4,0.95389114]
[1767992311808,1.7794713,3072.2,3071.4,0.95389114]
[1767992312012,5.03446834,3072.2,3071.4,0.95389114]
[1767992312422,1.75030686,3072.2,3071.4,0.95389114]
[1767992312582,0.00080624,3072.2,3071.4,0.95389114]
[1767992317519,0.00080624,3072.2,3071.5,0.93559978]
[1767992317882,0.001,3071.9,3071.5,0.93559978]
[1767992321092,0.001,3071.9,3071.5,0.002]
[1767992321520,0.98128043,3071.9,3071.6,0.256]
[1767992321892,0.001,3071.9,3071.6,0.256]
[1767992328404,0.001,3071.9,3071.5,0.002]
[1767992328603,0.001,3071.9,3071.6,0.256]
[1767992329221,0.001,3071.9,3071.7,0.002]
[1767992330035,0.42755501,3071.9,3071.7,0.002]
[1767992330206,0.90457797,3071.9,3071.7,0.002]
[1767992330601,0.90457797,3071.9,3071.4,0.002]
[1767992330936,0.00080672,3071.5,3071.0,0.002]
[1767992331104,0.90438469,3071.5,3071.0,0.002]
[1767992337467,0.90438469,3071.5,3071.1,0.256]
[1767992338466,0.00080672,3071.5,3071.1,0.256]
[1767992339128,0.00080672,3071.5,3071.2,0.90301125]
[1767992339532,0.00080672,3071.5,3071.1,0.256]
[1767992339845,0.00080672,3071.5,3071.1,1.15901125]
[1767992340369,0.93279842,3072.2,3071.2,0.03255889]
[1767992340530,0.93279842,3072.2,3071.4,0.90301125]
[1767992340733,0.00080624,3072.2,3071.4,0.90301125]
[1767992340930,0.00080624,3072.2,3071.5,4.15874948]
[1767992341174,0.00080624,3072.2,3071.7,0.90301125]
[1767992341868,0.00080624,3072.2,3071.8,0.256]